{"text_format":"3","workbook":"xlsx","n_sheets":14,"sheets":["sugestões","resumo","jan","fev","mar","abr","mai","jun","jul","ago","set","out","nov","dez"],"not_rendered":{"charts":1,"defined_names":27},"read":"whole","date_system":"1900"}

{"sheet":"sugestões","index":0,"n_rows":18,"n_cols":1,"rows_kept":18}
["SUGESTÕES DO MODELO"]
["Existe uma forma fácil de se deslocar entre a folha de resumo Tendências de Despesas e os detalhes das despesas mensais?"]
["Para navegar rapidamente para as despesas de um mês específico, clique na ligação de navegação associada que se encontra acima do gráfico, por exemplo a ligação de navegação Jan na célula B2. Em seguida, para regressar à folha de cálculo Tendências de Despesas, clique na ligação de navegação Resumo na célula D1. "]
["Para regressar à folha de cálculo Sugestões, selecione a célula N2 na folha de cálculo Resumo. A partir da folha de cálculo de qualquer um dos meses, selecione E1."]
["Como adiciono um novo tipo de Despesa ao Resumo das Despesas ou novas despesas mensais?"]
["O Resumo das Despesas abaixo do gráfico e os detalhes das despesas de cada mês são tabelas do Excel. Para adicionar novas linhas a uma tabela do Excel, efetue um dos seguintes passos:"]
[{"$f":"ROW(A1)&\". Se a tabela não tiver uma linha Total, comece a escrever por baixo da tabela e esta será automaticamente expandida quando premir a tecla Enter ou a tecla de Tabulação.\"","v":"1. Se a tabela não tiver uma linha Total, comece a escrever por baixo da tabela e esta será automaticamente expandida quando premir a tecla Enter ou a tecla de Tabulação."}]
[{"$f":"ROW(A2)&\". Coloque o ponteiro da célula na última célula por cima da linha Total, como o total da última despesa e, em seguida, prima a tecla de Tabulação.\"","v":"2. Coloque o ponteiro da célula na última célula por cima da linha Total, como o total da última despesa e, em seguida, prima a tecla de Tabulação."}]
[{"$f":"ROW(A3)&\". Clique com o botão direito do rato na tabela e no menu de pop-up, aponte para Inserir e, em seguida, clique em Linhas da Tabela Acima ou Linhas da Tabela Abaixo.\"","v":"3. Clique com o botão direito do rato na tabela e no menu de pop-up, aponte para Inserir e, em seguida, clique em Linhas da Tabela Acima ou Linhas da Tabela Abaixo."}]
[{"$f":"ROW(A4)&\". No canto inferior direito da tabela, coloque o rato sobre a alça de redimensionamento da tabela e arraste para baixo para aumentar o número de linhas da tabela disponíveis.\"","v":"4. No canto inferior direito da tabela, coloque o rato sobre a alça de redimensionamento da tabela e arraste para baixo para aumentar o número de linhas da tabela disponíveis."}]
["Introduza a despesa na folha de cálculo Resumo, na tabela ResumoDasDespesas, na coluna Despesas."]
["Adicione o montante das despesas para cada tipo de despesa na folha de cálculo do mês a que essa despesa se aplica."]
["Por exemplo: A \"Despesa 1\" ocorre nos meses Jan a Jun e Dez. "]
[{"$f":"ROW(A1)&\". A Despesa 1 é introduzida na folha de cálculo de resumo sob Despesa na tabela ResumoDaDespesa (como o título para o tipo de despesa)\"","v":"1. A Despesa 1 é introduzida na folha de cálculo de resumo sob Despesa na tabela ResumoDaDespesa (como o título para o tipo de despesa)"}]
[{"$f":"ROW(A2)&\". Para cada mês em que a despesa ocorre, introduza um montante de despesa na folha de cálculo do mês correspondente.\"","v":"2. Para cada mês em que a despesa ocorre, introduza um montante de despesa na folha de cálculo do mês correspondente."}]
[{"$f":"ROW(A3)&\". O tipo de despesa da folha de cálculo ResumoDaDespesa cria uma lista de categorias para a coluna Categoria na folha de cálculo de cada mês.\"","v":"3. O tipo de despesa da folha de cálculo ResumoDaDespesa cria uma lista de categorias para a coluna Categoria na folha de cálculo de cada mês."}]
[{"$f":"ROW(A4)&\". Utilize a lista de categorias na coluna Categorias para selecionar o tipo de despesa correspondente para o montante de despesa introduzido\"","v":"4. Utilize a lista de categorias na coluna Categorias para selecionar o tipo de despesa correspondente para o montante de despesa introduzido"}]
[{"$f":"ROW(A5)&\". Para adicionar novas despesas para qualquer mês, adicione uma nova linha à tabela ResumoDaDespesa na folha de cálculo de resumo e, em seguida, introduza os detalhes da despesa correspondentes na folha de cálculo do mês a que se aplica.\"","v":"5. Para adicionar novas despesas para qualquer mês, adicione uma nova linha à tabela ResumoDaDespesa na folha de cálculo de resumo e, em seguida, introduza os detalhes da despesa correspondentes na folha de cálculo do mês a que se aplica."}]

{"sheet":"resumo","index":1,"n_rows":10,"n_cols":15,"rows_kept":10}
["TENDÊNCIAS DE DESPESAS"]
[null,"Jan","Fev","Mar","Abr","Mai","Jun","Jul","Ago","Set","Out","Nov","Dez","Sugestões"]
[]
["Despesas","Jan","Fev","Mar","Abr","Mai","Jun","Jul","Ago","Set","Out","Nov","Dez","Total","Tendência"]
["Despesa 1",{"$f":"SUMIFS(DespJan[Montante], DespJan[Categoria], ResumoDasDespesas[[#This Row],[Despesas]])","v":{"v":33,"d":"33.00"}},{"$f":"SUMIFS(DespFev[Montante], DespFev[Categoria], ResumoDasDespesas[[#This Row],[Despesas]])","v":{"v":375,"d":"375.00"}},{"$f":"SUMIFS(DespMar[Montante], DespMar[Categoria], ResumoDasDespesas[[#This Row],[Despesas]])","v":{"v":33,"d":"33.00"}},{"$f":"SUMIFS(DespAbr[Montante], DespAbr[Categoria], ResumoDasDespesas[[#This Row],[Despesas]])","v":{"v":45,"d":"45.00"}},{"$f":"SUMIFS(DespMai[Montante], DespMai[Categoria], ResumoDasDespesas[[#This Row],[Despesas]])","v":{"v":375,"d":"375.00"}},{"$f":"SUMIFS(DespJun[Montante], DespJun[Categoria], ResumoDasDespesas[[#This Row],[Despesas]])","v":{"v":201,"d":"201.00"}},{"$f":"SUMIFS(DespJul[Montante], DespJul[Categoria], ResumoDasDespesas[[#This Row],[Despesas]])","v":{"v":0,"d":"0.00"}},{"$f":"SUMIFS(DespAgo[Montante], DespAgo[Categoria], ResumoDasDespesas[[#This Row],[Despesas]])","v":{"v":0,"d":"0.00"}},{"$f":"SUMIFS(DespSet[Montante], DespSet[Categoria], ResumoDasDespesas[[#This Row],[Despesas]])","v":{"v":0,"d":"0.00"}},{"$f":"SUMIFS(DespOut[Montante], DespOut[Categoria], ResumoDasDespesas[[#This Row],[Despesas]])","v":{"v":0,"d":"0.00"}},{"$f":"SUMIFS(DespNov[Montante], DespNov[Categoria], ResumoDasDespesas[[#This Row],[Despesas]])","v":{"v":0,"d":"0.00"}},{"$f":"SUMIFS(DespDez[Montante], DespDez[Categoria], ResumoDasDespesas[[#This Row],[Despesas]])","v":{"v":201,"d":"201.00"}},{"$f":"SUM(ResumoDasDespesas[[#This Row],[Jan]:[Dez]])","v":{"v":1263,"d":"1,263.00"}}]
["Despesa 2",{"$f":"SUMIFS(DespJan[Montante], DespJan[Categoria], ResumoDasDespesas[[#This Row],[Despesas]])","v":{"v":238,"d":"238.00"}},{"$f":"SUMIFS(DespFev[Montante], DespFev[Categoria], ResumoDasDespesas[[#This Row],[Despesas]])","v":{"v":238,"d":"238.00"}},{"$f":"SUMIFS(DespMar[Montante], DespMar[Categoria], ResumoDasDespesas[[#This Row],[Despesas]])","v":{"v":238,"d":"238.00"}},{"$f":"SUMIFS(DespAbr[Montante], DespAbr[Categoria], ResumoDasDespesas[[#This Row],[Despesas]])","v":{"v":123,"d":"123.00"}},{"$f":"SUMIFS(DespMai[Montante], DespMai[Categoria], ResumoDasDespesas[[#This Row],[Despesas]])","v":{"v":111,"d":"111.00"}},{"$f":"SUMIFS(DespJun[Montante], DespJun[Categoria], ResumoDasDespesas[[#This Row],[Despesas]])","v":{"v":98,"d":"98.00"}},{"$f":"SUMIFS(DespJul[Montante], DespJul[Categoria], ResumoDasDespesas[[#This Row],[Despesas]])","v":{"v":0,"d":"0.00"}},{"$f":"SUMIFS(DespAgo[Montante], DespAgo[Categoria], ResumoDasDespesas[[#This Row],[Despesas]])","v":{"v":0,"d":"0.00"}},{"$f":"SUMIFS(DespSet[Montante], DespSet[Categoria], ResumoDasDespesas[[#This Row],[Despesas]])","v":{"v":0,"d":"0.00"}},{"$f":"SUMIFS(DespOut[Montante], DespOut[Categoria], ResumoDasDespesas[[#This Row],[Despesas]])","v":{"v":0,"d":"0.00"}},{"$f":"SUMIFS(DespNov[Montante], DespNov[Categoria], ResumoDasDespesas[[#This Row],[Despesas]])","v":{"v":0,"d":"0.00"}},{"$f":"SUMIFS(DespDez[Montante], DespDez[Categoria], ResumoDasDespesas[[#This Row],[Despesas]])","v":{"v":440,"d":"440.00"}},{"$f":"SUM(ResumoDasDespesas[[#This Row],[Jan]:[Dez]])","v":{"v":1486,"d":"1,486.00"}}]
["Despesa 3",{"$f":"SUMIFS(DespJan[Montante], DespJan[Categoria], ResumoDasDespesas[[#This Row],[Despesas]])","v":{"v":110,"d":"110.00"}},{"$f":"SUMIFS(DespFev[Montante], DespFev[Categoria], ResumoDasDespesas[[#This Row],[Despesas]])","v":{"v":110,"d":"110.00"}},{"$f":"SUMIFS(DespMar[Montante], DespMar[Categoria], ResumoDasDespesas[[#This Row],[Despesas]])","v":{"v":110,"d":"110.00"}},{"$f":"SUMIFS(DespAbr[Montante], DespAbr[Categoria], ResumoDasDespesas[[#This Row],[Despesas]])","v":{"v":125,"d":"125.00"}},{"$f":"SUMIFS(DespMai[Montante], DespMai[Categoria], ResumoDasDespesas[[#This Row],[Despesas]])","v":{"v":333,"d":"333.00"}},{"$f":"SUMIFS(DespJun[Montante], DespJun[Categoria], ResumoDasDespesas[[#This Row],[Despesas]])","v":{"v":122,"d":"122.00"}},{"$f":"SUMIFS(DespJul[Montante], DespJul[Categoria], ResumoDasDespesas[[#This Row],[Despesas]])","v":{"v":0,"d":"0.00"}},{"$f":"SUMIFS(DespAgo[Montante], DespAgo[Categoria], ResumoDasDespesas[[#This Row],[Despesas]])","v":{"v":0,"d":"0.00"}},{"$f":"SUMIFS(DespSet[Montante], DespSet[Categoria], ResumoDasDespesas[[#This Row],[Despesas]])","v":{"v":0,"d":"0.00"}},{"$f":"SUMIFS(DespOut[Montante], DespOut[Categoria], ResumoDasDespesas[[#This Row],[Despesas]])","v":{"v":0,"d":"0.00"}},{"$f":"SUMIFS(DespNov[Montante], DespNov[Categoria], ResumoDasDespesas[[#This Row],[Despesas]])","v":{"v":0,"d":"0.00"}},{"$f":"SUMIFS(DespDez[Montante], DespDez[Categoria], ResumoDasDespesas[[#This Row],[Despesas]])","v":{"v":122,"d":"122.00"}},{"$f":"SUM(ResumoDasDespesas[[#This Row],[Jan]:[Dez]])","v":{"v":1032,"d":"1,032.00"}}]
["Despesa 4",{"$f":"SUMIFS(DespJan[Montante], DespJan[Categoria], ResumoDasDespesas[[#This Row],[Despesas]])","v":{"v":426,"d":"426.00"}},{"$f":"SUMIFS(DespFev[Montante], DespFev[Categoria], ResumoDasDespesas[[#This Row],[Despesas]])","v":{"v":84,"d":"84.00"}},{"$f":"SUMIFS(DespMar[Montante], DespMar[Categoria], ResumoDasDespesas[[#This Row],[Despesas]])","v":{"v":84,"d":"84.00"}},{"$f":"SUMIFS(DespAbr[Montante], DespAbr[Categoria], ResumoDasDespesas[[#This Row],[Despesas]])","v":{"v":426,"d":"426.00"}},{"$f":"SUMIFS(DespMai[Montante], DespMai[Categoria], ResumoDasDespesas[[#This Row],[Despesas]])","v":{"v":125,"d":"125.00"}},{"$f":"SUMIFS(DespJun[Montante], DespJun[Categoria], ResumoDasDespesas[[#This Row],[Despesas]])","v":{"v":187,"d":"187.00"}},{"$f":"SUMIFS(DespJul[Montante], DespJul[Categoria], ResumoDasDespesas[[#This Row],[Despesas]])","v":{"v":0,"d":"0.00"}},{"$f":"SUMIFS(DespAgo[Montante], DespAgo[Categoria], ResumoDasDespesas[[#This Row],[Despesas]])","v":{"v":0,"d":"0.00"}},{"$f":"SUMIFS(DespSet[Montante], DespSet[Categoria], ResumoDasDespesas[[#This Row],[Despesas]])","v":{"v":0,"d":"0.00"}},{"$f":"SUMIFS(DespOut[Montante], DespOut[Categoria], ResumoDasDespesas[[#This Row],[Despesas]])","v":{"v":0,"d":"0.00"}},{"$f":"SUMIFS(DespNov[Montante], DespNov[Categoria], ResumoDasDespesas[[#This Row],[Despesas]])","v":{"v":0,"d":"0.00"}},{"$f":"SUMIFS(DespDez[Montante], DespDez[Categoria], ResumoDasDespesas[[#This Row],[Despesas]])","v":{"v":187,"d":"187.00"}},{"$f":"SUM(ResumoDasDespesas[[#This Row],[Jan]:[Dez]])","v":{"v":1519,"d":"1,519.00"}}]
["Despesa 5",{"$f":"SUMIFS(DespJan[Montante], DespJan[Categoria], ResumoDasDespesas[[#This Row],[Despesas]])","v":{"v":54,"d":"54.00"}},{"$f":"SUMIFS(DespFev[Montante], DespFev[Categoria], ResumoDasDespesas[[#This Row],[Despesas]])","v":{"v":54,"d":"54.00"}},{"$f":"SUMIFS(DespMar[Montante], DespMar[Categoria], ResumoDasDespesas[[#This Row],[Despesas]])","v":{"v":109,"d":"109.00"}},{"$f":"SUMIFS(DespAbr[Montante], DespAbr[Categoria], ResumoDasDespesas[[#This Row],[Despesas]])","v":{"v":98,"d":"98.00"}},{"$f":"SUMIFS(DespMai[Montante], DespMai[Categoria], ResumoDasDespesas[[#This Row],[Despesas]])","v":{"v":33,"d":"33.00"}},{"$f":"SUMIFS(DespJun[Montante], DespJun[Categoria], ResumoDasDespesas[[#This Row],[Despesas]])","v":{"v":441,"d":"441.00"}},{"$f":"SUMIFS(DespJul[Montante], DespJul[Categoria], ResumoDasDespesas[[#This Row],[Despesas]])","v":{"v":0,"d":"0.00"}},{"$f":"SUMIFS(DespAgo[Montante], DespAgo[Categoria], ResumoDasDespesas[[#This Row],[Despesas]])","v":{"v":0,"d":"0.00"}},{"$f":"SUMIFS(DespSet[Montante], DespSet[Categoria], ResumoDasDespesas[[#This Row],[Despesas]])","v":{"v":0,"d":"0.00"}},{"$f":"SUMIFS(DespOut[Montante], DespOut[Categoria], ResumoDasDespesas[[#This Row],[Despesas]])","v":{"v":0,"d":"0.00"}},{"$f":"SUMIFS(DespNov[Montante], DespNov[Categoria], ResumoDasDespesas[[#This Row],[Despesas]])","v":{"v":0,"d":"0.00"}},{"$f":"SUMIFS(DespDez[Montante], DespDez[Categoria], ResumoDasDespesas[[#This Row],[Despesas]])","v":{"v":99,"d":"99.00"}},{"$f":"SUM(ResumoDasDespesas[[#This Row],[Jan]:[Dez]])","v":{"v":888,"d":"888.00"}}]
["Total",{"$f":"SUBTOTAL(109,B5:B9)","v":{"v":861,"d":"861.00"}},{"v":861,"d":"861.00"},{"v":574,"d":"574.00"},{"v":817,"d":"817.00"},{"v":977,"d":"977.00"},{"v":1049,"d":"1,049.00"},{"v":0,"d":"0.00"},{"v":0,"d":"0.00"},{"v":0,"d":"0.00"},{"v":0,"d":"0.00"},{"v":0,"d":"0.00"},{"v":1049,"d":"1,049.00"},{"v":6188,"d":"6,188.00"}]

{"sheet":"jan","index":2,"n_rows":9,"n_cols":5,"rows_kept":9,"merged":[[0,0,0,2]]}
["DESPESAS DE JANEIRO",null,null,"Resumo","Sugestões"]
["Data","N.º da Nota de Encomenda","Montante","Categoria","Descrição"]
[{"$f":"DATE(YEAR(TODAY()),1,4)","v":"2016-01-04"},"A-12345",{"v":33,"d":"33.00"},"Despesa 1","Materiais"]
[{"$f":"DATE(YEAR(TODAY()),1,5)","v":"2016-01-05"},"A-12346",{"v":238,"d":"238.00"},"Despesa 2"]
[null,null,{"v":342,"d":"342.00"},"Despesa 4"]
[null,null,{"v":110,"d":"110.00"},"Despesa 3"]
[null,null,{"v":84,"d":"84.00"},"Despesa 4"]
[null,null,{"v":54,"d":"54.00"},"Despesa 5"]
["Total",null,{"$f":"SUBTOTAL(109,DespJan[Montante])","v":{"v":861,"d":"861.00"}}]

{"sheet":"fev","index":3,"n_rows":9,"n_cols":5,"rows_kept":9,"merged":[[0,0,0,2]]}
["DESPESAS DE FEVEREIRO",null,null,"Resumo","Sugestões"]
["Data","N.º da Nota de Encomenda","Montante","Categoria","Descrição"]
[{"$f":"DATE(YEAR(TODAY()),2,3)","v":"2016-02-03"},"A-12345",{"v":33,"d":"33.00"},"Despesa 1","Materiais"]
[{"$f":"DATE(YEAR(TODAY()),2,4)","v":"2016-02-04"},"A-12346",{"v":238,"d":"238.00"},"Despesa 2"]
[null,null,{"v":342,"d":"342.00"},"Despesa 1"]
[null,null,{"v":110,"d":"110.00"},"Despesa 3"]
[null,null,{"v":84,"d":"84.00"},"Despesa 4"]
[null,null,{"v":54,"d":"54.00"},"Despesa 5"]
["Total",null,{"$f":"SUBTOTAL(109,DespFev[Montante])","v":{"v":861,"d":"861.00"}}]

{"sheet":"mar","index":4,"n_rows":9,"n_cols":5,"rows_kept":9,"merged":[[0,0,0,2]]}
["DESPESAS DE MARÇO",null,null,"Resumo","Sugestões"]
["Data","N.º da Nota de Encomenda","Montante","Categoria","Descrição"]
[{"$f":"DATE(YEAR(TODAY()),3,5)","v":"2016-03-05"},"A-12345",{"v":33,"d":"33.00"},"Despesa 1","Materiais"]
[{"$f":"DATE(YEAR(TODAY()),3,6)","v":"2016-03-06"},"A-12346",{"v":238,"d":"238.00"},"Despesa 2"]
[null,null,{"v":55,"d":"55.00"},"Despesa 5"]
[null,null,{"v":110,"d":"110.00"},"Despesa 3"]
[null,null,{"v":84,"d":"84.00"},"Despesa 4"]
[null,null,{"v":54,"d":"54.00"},"Despesa 5"]
["Total",null,{"$f":"SUBTOTAL(109,DespMar[Montante])","v":{"v":574,"d":"574.00"}}]

{"sheet":"abr","index":5,"n_rows":9,"n_cols":5,"rows_kept":9,"merged":[[0,0,0,2]]}
["DESPESAS DE ABRIL",null,null,"Resumo","Sugestões"]
["Data","N.º da Nota de Encomenda","Montante","Categoria","Descrição"]
[{"$f":"DATE(YEAR(TODAY()),4,4)","v":"2016-04-04"},"A-12345",{"v":45,"d":"45.00"},"Despesa 1","Materiais"]
[{"$f":"DATE(YEAR(TODAY()),4,8)","v":"2016-04-08"},"A-12346",{"v":123,"d":"123.00"},"Despesa 2"]
[null,null,{"v":342,"d":"342.00"},"Despesa 4"]
[null,null,{"v":125,"d":"125.00"},"Despesa 3"]
[null,null,{"v":84,"d":"84.00"},"Despesa 4"]
[null,null,{"v":98,"d":"98.00"},"Despesa 5"]
["Total",null,{"$f":"SUBTOTAL(109,DespAbr[Montante])","v":{"v":817,"d":"817.00"}}]

{"sheet":"mai","index":6,"n_rows":9,"n_cols":5,"rows_kept":9,"merged":[[0,0,0,2]]}
["DESPESAS DE MAIO",null,null,"Resumo","Sugestões"]
["Data","N.º da Nota de Encomenda","Montante","Categoria","Descrição"]
[{"$f":"DATE(YEAR(TODAY()),5,3)","v":"2016-05-03"},"A-12345",{"v":33,"d":"33.00"},"Despesa 1","Materiais"]
[{"$f":"DATE(YEAR(TODAY()),5,8)","v":"2016-05-08"},"A-12346",{"v":111,"d":"111.00"},"Despesa 2"]
[null,null,{"v":342,"d":"342.00"},"Despesa 1"]
[null,null,{"v":333,"d":"333.00"},"Despesa 3"]
[null,null,{"v":125,"d":"125.00"},"Despesa 4"]
[null,null,{"v":33,"d":"33.00"},"Despesa 5"]
["Total",null,{"$f":"SUBTOTAL(109,DespMai[Montante])","v":{"v":977,"d":"977.00"}}]

{"sheet":"jun","index":7,"n_rows":9,"n_cols":5,"rows_kept":9,"merged":[[0,0,0,2]]}
["DESPESAS DE JUNHO",null,null,"Resumo","Sugestões"]
["Data","N.º da Nota de Encomenda","Montante","Categoria","Descrição"]
[{"$f":"DATE(YEAR(TODAY()),6,7)","v":"2016-06-07"},"A-12345",{"v":201,"d":"201.00"},"Despesa 1","Materiais"]
[{"$f":"DATE(YEAR(TODAY()),6,8)","v":"2016-06-08"},"A-12346",{"v":98,"d":"98.00"},"Despesa 2"]
[null,null,{"v":342,"d":"342.00"},"Despesa 5"]
[null,null,{"v":122,"d":"122.00"},"Despesa 3"]
[null,null,{"v":187,"d":"187.00"},"Despesa 4"]
[null,null,{"v":99,"d":"99.00"},"Despesa 5"]
["Total",null,{"$f":"SUBTOTAL(109,DespJun[Montante])","v":{"v":1049,"d":"1,049.00"}}]

{"sheet":"jul","index":8,"n_rows":9,"n_cols":5,"rows_kept":9,"merged":[[0,0,0,2]]}
["DESPESAS DE JULHO",null,null,"Resumo","Sugestões"]
["Data","N.º da Nota de Encomenda","Montante","Categoria","Descrição"]
[{"$f":"DATE(YEAR(TODAY()),7,9)","v":"2016-07-09"},"A-12345",null,"Despesa 1","Materiais"]
[{"$f":"DATE(YEAR(TODAY()),7,14)","v":"2016-07-14"},"A-12346",null,"Despesa 2"]
[{"$nulls":3},"Despesa 2"]
[{"$nulls":3},"Despesa 3"]
[{"$nulls":3},"Despesa 4"]
[{"$nulls":3},"Despesa 5"]
["Total",null,{"$f":"SUBTOTAL(109,DespJul[Montante])","v":{"v":0,"d":"0.00"}}]

{"sheet":"ago","index":9,"n_rows":9,"n_cols":5,"rows_kept":9,"merged":[[0,0,0,2]]}
["DESPESAS DE AGOSTO",null,null,"Resumo","Sugestões"]
["Data","N.º da Nota de Encomenda","Montante","Categoria","Descrição"]
[{"$f":"DATE(YEAR(TODAY()),8,8)","v":"2016-08-08"},"A-12345",null,"Despesa 1","Materiais"]
[{"$f":"DATE(YEAR(TODAY()),8,9)","v":"2016-08-09"},"A-12346",null,"Despesa 2"]
[{"$nulls":3},"Despesa 2"]
[{"$nulls":3},"Despesa 3"]
[{"$nulls":3},"Despesa 4"]
[{"$nulls":3},"Despesa 5"]
["Total",null,{"$f":"SUBTOTAL(109,DespAgo[Montante])","v":{"v":0,"d":"0.00"}}]

{"sheet":"set","index":10,"n_rows":9,"n_cols":5,"rows_kept":9,"merged":[[0,0,0,2]]}
["DESPESAS DE SETEMBRO",null,null,"Resumo","Sugestões"]
["Data","N.º da Nota de Encomenda","Montante","Categoria","Descrição"]
[{"$f":"DATE(YEAR(TODAY()),9,9)","v":"2016-09-09"},"A-12345",null,"Despesa 1","Materiais"]
[{"$f":"DATE(YEAR(TODAY()),9,15)","v":"2016-09-15"},"A-12346",null,"Despesa 2"]
[{"$nulls":3},"Despesa 2"]
[{"$nulls":3},"Despesa 3"]
[{"$nulls":3},"Despesa 4"]
[{"$nulls":3},"Despesa 5"]
["Total",null,{"$f":"SUBTOTAL(109,DespSet[Montante])","v":{"v":0,"d":"0.00"}}]

{"sheet":"out","index":11,"n_rows":9,"n_cols":5,"rows_kept":9,"merged":[[0,0,0,2]]}
["DESPESAS DE OUTUBRO",null,null,"Resumo","Sugestões"]
["Data","N.º da Nota de Encomenda","Montante","Categoria","Descrição"]
[{"$f":"DATE(YEAR(TODAY()),10,10)","v":"2016-10-10"},"A-12345",null,"Despesa 1","Materiais"]
[{"$f":"DATE(YEAR(TODAY()),10,21)","v":"2016-10-21"},"A-12346",null,"Despesa 2"]
[{"$nulls":3},"Despesa 2"]
[{"$nulls":3},"Despesa 3"]
[{"$nulls":3},"Despesa 4"]
[{"$nulls":3},"Despesa 5"]
["Total",null,{"$f":"SUBTOTAL(109,DespOut[Montante])","v":{"v":0,"d":"0.00"}}]

{"sheet":"nov","index":12,"n_rows":9,"n_cols":5,"rows_kept":9,"merged":[[0,0,0,2]]}
["DESPESAS DE NOVEMBRO",null,null,"Resumo","Sugestões"]
["Data","N.º da Nota de Encomenda","Montante","Categoria","Descrição"]
[{"$f":"DATE(YEAR(TODAY()),11,14)","v":"2016-11-14"},"A-12345",null,"Despesa 1","Materiais"]
[{"$f":"DATE(YEAR(TODAY()),11,21)","v":"2016-11-21"},"A-12346",null,"Despesa 2"]
[{"$nulls":3},"Despesa 2"]
[{"$nulls":3},"Despesa 3"]
[{"$nulls":3},"Despesa 4"]
[{"$nulls":3},"Despesa 5"]
["Total",null,{"$f":"SUBTOTAL(109,DespNov[Montante])","v":{"v":0,"d":"0.00"}}]

{"sheet":"dez","index":13,"n_rows":9,"n_cols":5,"rows_kept":9,"merged":[[0,0,0,2]]}
["DESPESAS DE DEZEMBRO",null,null,"Resumo","Sugestões"]
["Data","N.º da Nota de Encomenda","Montante","Categoria","Descrição"]
[{"$f":"DATE(YEAR(TODAY()),12,2)","v":"2016-12-02"},"A-12345",{"v":201,"d":"201.00"},"Despesa 1","Materiais"]
[{"$f":"DATE(YEAR(TODAY()),12,24)","v":"2016-12-24"},"A-12346",{"v":98,"d":"98.00"},"Despesa 2"]
[null,null,{"v":342,"d":"342.00"},"Despesa 2"]
[null,null,{"v":122,"d":"122.00"},"Despesa 3"]
[null,null,{"v":187,"d":"187.00"},"Despesa 4"]
[null,null,{"v":99,"d":"99.00"},"Despesa 5"]
["Total",null,{"$f":"SUBTOTAL(109,DespDez[Montante])","v":{"v":1049,"d":"1,049.00"}}]